Department Family,Entity,Date,Expense Type,Expense Area,Supplier,Transaction Number,AP Amount,ACTION,,
Department of Health,St. Helens&Knowsley Hospitals NHS Trust,30/06/2020,Appl Special Cushions,SEDDON SUITE TRAUMA REHAB UNIT,CANON UK LTD,34175611,-35.37,
Department of Health,St. Helens&Knowsley Hospitals NHS Trust,30/06/2020,AQUA MEMBERSHIP,CHIEF EXECUTIVE'S OFFICE,SALFORD ROYAL HOSPITALS NHS FOUNDATION TRUST,34622764,"40,000.00",
Department of Health,St. Helens&Knowsley Hospitals NHS Trust,30/06/2020,Blood Products,HAEM + BLOOD TRANSFUSION,NHS BLOOD & TRANSPLANT,34686014,"100,601.09",
Department of Health,St. Helens&Knowsley Hospitals NHS Trust,30/06/2020,CNST contributions,CLINICAL NEGLIGENCE,10003266,NHSLACONT-T213,"1,343,893.60 ",
Department of Health,St. Helens&Knowsley Hospitals NHS Trust,30/06/2020,Coding Review,FINANCE DIRECTORATE HQ,IQVIA TECHNOLOGY SERVICES LTD,34756776,"37,125.00",
Department of Health,St. Helens&Knowsley Hospitals NHS Trust,30/06/2020,Computer Hardware Purch,LIBRARY SERVICES,CANON UK LTD,34175611,-171.75,
Department of Health,St. Helens&Knowsley Hospitals NHS Trust,30/06/2020,Computer Hardware Purch,COVID,CAE TECHNOLOGY SERVICES LTD,34657067,"47,523.54",
Department of Health,St. Helens&Knowsley Hospitals NHS Trust,30/06/2020,Computer Hardware Purch,COVID,CAE TECHNOLOGY SERVICES LTD,34657067,"53,675.98",
Department of Health,St. Helens&Knowsley Hospitals NHS Trust,30/06/2020,Computer Hardware Purch,COVID,SOFTCAT PLC,34687231,"32,546.86",
Department of Health,St. Helens&Knowsley Hospitals NHS Trust,30/06/2020,Computer Hardware Purch,COVID,SOFTCAT PLC,34687231,"2,291.12",
Department of Health,St. Helens&Knowsley Hospitals NHS Trust,30/06/2020,Computer Hardware Purch,COVID,SOFTCAT PLC,34687231,"11,457.93",
Department of Health,St. Helens&Knowsley Hospitals NHS Trust,30/06/2020,Computer Hardware Purch,COVID,SOFTCAT PLC,34687231,"6,509.36",
Department of Health,St. Helens&Knowsley Hospitals NHS Trust,30/06/2020,Computer Hardware Purch,COVID,SOFTCAT PLC,34687231,"10,561.05",
Department of Health,St. Helens&Knowsley Hospitals NHS Trust,30/06/2020,Computer Hardware Purch,HIS programme costs - shared services,HP INC UK LTD,34757975,"1,040.00",
Department of Health,St. Helens&Knowsley Hospitals NHS Trust,30/06/2020,Computer Hardware Purch,HIS programme costs - shared services,HP INC UK LTD,34757975,"53,836.90",
Department of Health,St. Helens&Knowsley Hospitals NHS Trust,30/06/2020,Computer Maintenance,HUMAN RESOURCES - RESOURCING,CIVICA UK LTD,34570945,"29,595.50",
Department of Health,St. Helens&Knowsley Hospitals NHS Trust,30/06/2020,Computer Maintenance,HUMAN RESOURCES - RESOURCING,CIVICA UK LTD,34570945,489.30,
Department of Health,St. Helens&Knowsley Hospitals NHS Trust,30/06/2020,Computer Maintenance,HIS programme costs - shared services,CCUBE SOLUTIONS LTD,34623034,"50,000.00",
Department of Health,St. Helens&Knowsley Hospitals NHS Trust,30/06/2020,Computer Maintenance,HIS programme costs - shared services,CCUBE SOLUTIONS LTD,34623034,"10,000.00",
Department of Health,St. Helens&Knowsley Hospitals NHS Trust,30/06/2020,Continence Products,COMMUNITY CONTINENCE SERVICE,ESSITY UK LTD,34670625,"32,875.33",
Department of Health,St. Helens&Knowsley Hospitals NHS Trust,30/06/2020,Contr Photocopier Rental,PHARMACY GENERAL,CANON UK LTD,34175611,-60.69,
Department of Health,St. Helens&Knowsley Hospitals NHS Trust,30/06/2020,Contr Photocopier Rental,NORTH WEST HEE,CANON UK LTD,34699934,"37,389.69",
Department of Health,St. Helens&Knowsley Hospitals NHS Trust,30/06/2020,Data Lines,HIS programme costs - shared services,VIRGIN MEDIA BUSINESS LTD,34622773,"74,068.19",
Department of Health,St. Helens&Knowsley Hospitals NHS Trust,30/06/2020,Data Lines,HIS programme costs - shared services,VIRGIN MEDIA BUSINESS LTD,34741599,"70,141.57",
Department of Health,St. Helens&Knowsley Hospitals NHS Trust,30/06/2020,Data Lines,HIS programme costs - shared services,VIRGIN MEDIA BUSINESS LTD,34741638,"74,955.00",
Department of Health,St. Helens&Knowsley Hospitals NHS Trust,30/06/2020,Dressings,COVID,HENLEYS MEDICAL SUPPLIES LTD,34708699,"35,000.00",
Department of Health,St. Helens&Knowsley Hospitals NHS Trust,30/06/2020,Dressings,COVID,HENLEYS MEDICAL SUPPLIES LTD,34708699,"6,000.00",
Department of Health,St. Helens&Knowsley Hospitals NHS Trust,30/06/2020,Dressings,COVID,HENLEYS MEDICAL SUPPLIES LTD,34708699,"8,200.00",
Department of Health,St. Helens&Knowsley Hospitals NHS Trust,30/06/2020,Equip Maint Contracts,RADIOGRAPHY WHISTON,SUPPLY CHAIN COORDINATION LIMITED,34422864,"5,200.00",
Department of Health,St. Helens&Knowsley Hospitals NHS Trust,30/06/2020,Equip Maint Contracts,RADIOGRAPHY WHISTON,SUPPLY CHAIN COORDINATION LIMITED,34544048,"47,936.69",
Department of Health,St. Helens&Knowsley Hospitals NHS Trust,30/06/2020,Ext Contr Laundry,WHISTON EQUIPMENT POOL,DRIVE DEVILBISS SIDHIL LTD,34622085,85.00,
Department of Health,St. Helens&Knowsley Hospitals NHS Trust,30/06/2020,IGComp3PSoft - Additions,Balance Sheet,INSIGHT DIRECT (UK) LTD,34650226,"11,602.05",
Department of Health,St. Helens&Knowsley Hospitals NHS Trust,30/06/2020,IGComp3PSoft - Additions,Balance Sheet,INSIGHT DIRECT (UK) LTD,34650226,"23,204.10",
Department of Health,St. Helens&Knowsley Hospitals NHS Trust,30/06/2020,IGComp3PSoft - Additions,Balance Sheet,INSIGHT DIRECT (UK) LTD,34650226,"23,204.10",
Department of Health,St. Helens&Knowsley Hospitals NHS Trust,30/06/2020,IGComp3PSoft - Additions,Balance Sheet,INSIGHT DIRECT (UK) LTD,34650226,"2,320.41",
Department of Health,St. Helens&Knowsley Hospitals NHS Trust,30/06/2020,IGComp3PSoft - Additions,Balance Sheet,INSIGHT DIRECT (UK) LTD,34650226,"9,281.64",
Department of Health,St. Helens&Knowsley Hospitals NHS Trust,30/06/2020,Independent Sector,LLP,ST HELENS ORTHOPAEDICS,34719095,"349,549.00",
Department of Health,St. Helens&Knowsley Hospitals NHS Trust,30/06/2020,IT Additions,Balance Sheet,HP INC UK LTD,34757977,"3,760.00",
Department of Health,St. Helens&Knowsley Hospitals NHS Trust,30/06/2020,IT Additions,Balance Sheet,HP INC UK LTD,34757977,"194,157.00",
Department of Health,St. Helens&Knowsley Hospitals NHS Trust,30/06/2020,IT Additions,Balance Sheet,HP INC UK LTD,34757977,"39,583.40",
Department of Health,St. Helens&Knowsley Hospitals NHS Trust,30/06/2020,Lab Equip Maint Contracts,CHEMICAL PATHOLOGY DEPT,SIEMENS HEALTHCARE DIAGNOSTICS LTD,34478883,"26,658.36",
Department of Health,St. Helens&Knowsley Hospitals NHS Trust,30/06/2020,Lab Equip Maint Contracts,CHEMICAL PATHOLOGY DEPT,SIEMENS HEALTHCARE DIAGNOSTICS LTD,34587837,"73,420.72",
Department of Health,St. Helens&Knowsley Hospitals NHS Trust,30/06/2020,Lab Equip Maint Contracts,CHEMICAL PATHOLOGY DEPT,SIEMENS HEALTHCARE DIAGNOSTICS LTD,34742156,"49,308.97",
Department of Health,St. Helens&Knowsley Hospitals NHS Trust,30/06/2020,Laboratory Chemicals,HAEM + BLOOD TRANSFUSION,SYSMEX UK LTD,34543373,"35,657.71",
Department of Health,St. Helens&Knowsley Hospitals NHS Trust,30/06/2020,Laboratory Equipment,MICROBIOLOGY DEPT,CHRYSTAL CONSULTING LTD,34355100,"5,129.07",
Department of Health,St. Helens&Knowsley Hospitals NHS Trust,30/06/2020,Laboratory Equipment,MICROBIOLOGY DEPT,CHRYSTAL CONSULTING LTD,34355100,"1,025.81",
Department of Health,St. Helens&Knowsley Hospitals NHS Trust,30/06/2020,Laboratory Quality Ctrl,PATHOLOGY GENERAL,CSC COMPUTER SCIENCES LTD,34544417,"124,756.94",
Department of Health,St. Helens&Knowsley Hospitals NHS Trust,30/06/2020,Laboratory Quality Ctrl,PATHOLOGY GENERAL,CLINISYS SOLUTIONS LTD,34611357,"83,382.73",
Department of Health,St. Helens&Knowsley Hospitals NHS Trust,30/06/2020,Laboratory Quality Ctrl,PATHOLOGY GENERAL,CLINISYS SOLUTIONS LTD,34611357,"16,676.55",
Department of Health,St. Helens&Knowsley Hospitals NHS Trust,30/06/2020,Laboratory Reagents,MICROBIOLOGY DEPT,CHRYSTAL CONSULTING LTD,34355098,"54,190.05",
Department of Health,St. Helens&Knowsley Hospitals NHS Trust,30/06/2020,Laboratory Reagents,MICROBIOLOGY DEPT,CHRYSTAL CONSULTING LTD,34355098,"1,956.89",
Department of Health,St. Helens&Knowsley Hospitals NHS Trust,30/06/2020,Laboratory Reagents,MICROBIOLOGY DEPT,CHRYSTAL CONSULTING LTD,34355100,"162,877.19",
Department of Health,St. Helens&Knowsley Hospitals NHS Trust,30/06/2020,Laboratory Reagents,MICROBIOLOGY DEPT,CHRYSTAL CONSULTING LTD,34355100,"17,560.45",
Department of Health,St. Helens&Knowsley Hospitals NHS Trust,30/06/2020,Laboratory Reagents,MICROBIOLOGY DEPT,CHRYSTAL CONSULTING LTD,34355100,"117,237.33",
Department of Health,St. Helens&Knowsley Hospitals NHS Trust,30/06/2020,Laboratory Reagents,MICROBIOLOGY DEPT,CHRYSTAL CONSULTING LTD,34355100,"-1,025.81",
Department of Health,St. Helens&Knowsley Hospitals NHS Trust,30/06/2020,Laboratory Test Kits,POINT OF CARE,CHRYSTAL CONSULTING LTD,34802893,"30,073.03",
Department of Health,St. Helens&Knowsley Hospitals NHS Trust,30/06/2020,Laboratory Test Kits,POINT OF CARE,CHRYSTAL CONSULTING LTD,34802893,"6,014.61",
Department of Health,St. Helens&Knowsley Hospitals NHS Trust,30/06/2020,Lease Rents,INFORMATION DEPARTMENT,OAKMERE ESTATES (LIVERPOOL) LTD,34635994,"29,082.00",
Department of Health,St. Helens&Knowsley Hospitals NHS Trust,30/06/2020,Lease Rents,HIS programme costs - shared services,OAKMERE ESTATES (LIVERPOOL) LTD,34635998,"103,500.00",
Department of Health,St. Helens&Knowsley Hospitals NHS Trust,30/06/2020,Lease Rents,PFI DESIGN + CONSTRUCTION,EDDISONS COMMERCIAL PROPERTY MANAGEMENT LTD,34726094,"62,400.00",
Department of Health,St. Helens&Knowsley Hospitals NHS Trust,30/06/2020,Med & Surg Equip Disp,GEN MED ENDOSCOPY H2,BOSTON SCIENTIFIC LTD,32597742,"26,875.59",
Department of Health,St. Helens&Knowsley Hospitals NHS Trust,30/06/2020,Med & Surg Equip Disp,ICU NURSING WHISTON,FULL SUPPORT HEALTHCARE LTD,34756814,98.00,
Department of Health,St. Helens&Knowsley Hospitals NHS Trust,30/06/2020,Med & Surg Equip Disp,ICU NURSING WHISTON,FULL SUPPORT HEALTHCARE LTD,34756814,400.00,
Department of Health,St. Helens&Knowsley Hospitals NHS Trust,30/06/2020,Med & Surg Equip Disp,ICU NURSING WHISTON,FULL SUPPORT HEALTHCARE LTD,34756814,687.50,
Department of Health,St. Helens&Knowsley Hospitals NHS Trust,30/06/2020,Med & Surg Equip Disp,ICU NURSING WHISTON,FULL SUPPORT HEALTHCARE LTD,34756814,360.00,
Department of Health,St. Helens&Knowsley Hospitals NHS Trust,30/06/2020,Med & Surg Equip Disp,ICU NURSING WHISTON,FULL SUPPORT HEALTHCARE LTD,34756814,110.00,
Department of Health,St. Helens&Knowsley Hospitals NHS Trust,30/06/2020,Med & Surg Equip Disp,ICU NURSING WHISTON,FULL SUPPORT HEALTHCARE LTD,34756814,75.00,
Department of Health,St. Helens&Knowsley Hospitals NHS Trust,30/06/2020,Med & Surg Equip Disp,ICU NURSING WHISTON,FULL SUPPORT HEALTHCARE LTD,34756814,"35,000.00",
Department of Health,St. Helens&Knowsley Hospitals NHS Trust,30/06/2020,Med & Surg Equip General,PURCHASING + SUPPLY DEPT,PURE INNOVATIONS GROUP LTD,34587821,"38,000.00",
Department of Health,St. Helens&Knowsley Hospitals NHS Trust,30/06/2020,Med & Surg Equip General,PURCHASING + SUPPLY DEPT,PURE INNOVATIONS GROUP LTD,34587821,"7,600.00",
Department of Health,St. Helens&Knowsley Hospitals NHS Trust,30/06/2020,Med & Surg Equip General,CARDIAC CATHETER LAB,CHANGE HEALTHCARE UK HOLDINGS LTD,34742826,"24,473.76",
Department of Health,St. Helens&Knowsley Hospitals NHS Trust,30/06/2020,Med & Surg Equip General,CARDIAC CATHETER LAB,CHANGE HEALTHCARE UK HOLDINGS LTD,34742826,"4,894.75",
Department of Health,St. Helens&Knowsley Hospitals NHS Trust,30/06/2020,Med & Surg Equip Repair,WHISTON EQUIPMENT POOL,DRIVE DEVILBISS SIDHIL LTD,34530077,"14,970.75",
Department of Health,St. Helens&Knowsley Hospitals NHS Trust,30/06/2020,Med & Surg Equip Repair,WHISTON EQUIPMENT POOL,DRIVE DEVILBISS SIDHIL LTD,34530077,"15,447.00",
Department of Health,St. Helens&Knowsley Hospitals NHS Trust,30/06/2020,Med & Surg Equip Repair,WHISTON EQUIPMENT POOL,DRIVE DEVILBISS SIDHIL LTD,34530077,"3,202.43",
Department of Health,St. Helens&Knowsley Hospitals NHS Trust,30/06/2020,Med & Surg Equip Repair,WHISTON EQUIPMENT POOL,DRIVE DEVILBISS SIDHIL LTD,34622085,"8,097.52",
Department of Health,St. Helens&Knowsley Hospitals NHS Trust,30/06/2020,Med & Surg Equip Repair,WHISTON EQUIPMENT POOL,DRIVE DEVILBISS SIDHIL LTD,34622085,"3,135.00",
Department of Health,St. Helens&Knowsley Hospitals NHS Trust,30/06/2020,Med & Surg Equip Repair,WHISTON EQUIPMENT POOL,DRIVE DEVILBISS SIDHIL LTD,34622085,"16,789.50",
Department of Health,St. Helens&Knowsley Hospitals NHS Trust,30/06/2020,Med & Surg Equip Repair,WHISTON EQUIPMENT POOL,DRIVE DEVILBISS SIDHIL LTD,34622085,"1,991.37",
Department of Health,St. Helens&Knowsley Hospitals NHS Trust,30/06/2020,Med & Surg Maint Contract,WHISTON EQUIPMENT POOL,DRIVE DEVILBISS SIDHIL LTD,34622085,157.00,
Department of Health,St. Helens&Knowsley Hospitals NHS Trust,30/06/2020,Med & Surg Maint Contract,Cold Decontamination,IM MED LTD,34671793,"41,253.75",
Department of Health,St. Helens&Knowsley Hospitals NHS Trust,30/06/2020,Med & Surg Maint Contract,Cold Decontamination,IM MED LTD,34671793,"29,746.12",
Department of Health,St. Helens&Knowsley Hospitals NHS Trust,30/06/2020,Med Equip Additions,Balance Sheet,OLYMPUS KEYMED,34622990,"91,826.00",
Department of Health,St. Helens&Knowsley Hospitals NHS Trust,30/06/2020,Med Equip Additions,Balance Sheet,OLYMPUS KEYMED,34622990,"1,176.00",
Department of Health,St. Helens&Knowsley Hospitals NHS Trust,30/06/2020,Med Equip Additions,Balance Sheet,OLYMPUS KEYMED,34622990,"18,600.40",
Department of Health,St. Helens&Knowsley Hospitals NHS Trust,30/06/2020,Miscellaneous Expenditure,PFI ENABLING WORKS,MEDIREST,34520324,"180,000.00",
Department of Health,St. Helens&Knowsley Hospitals NHS Trust,30/06/2020,Miscellaneous Expenditure,PFI ENABLING WORKS,NEW HOSPITALS (ST HELENS & KNOWSLEY) LTD,34552728,"944,509.67",
Department of Health,St. Helens&Knowsley Hospitals NHS Trust,30/06/2020,Miscellaneous Expenditure,Pathology Southport & Ormskirk,SOUTHPORT AND ORMSKIRK HOSPITAL NHS TRUST,34558268,"133,706.00",
Department of Health,St. Helens&Knowsley Hospitals NHS Trust,30/06/2020,Miscellaneous Expenditure,Pathology Southport & Ormskirk,SOUTHPORT AND ORMSKIRK HOSPITAL NHS TRUST,34558270,"133,227.48",
Department of Health,St. Helens&Knowsley Hospitals NHS Trust,30/06/2020,Miscellaneous Expenditure,Pathology Southport & Ormskirk,SOUTHPORT AND ORMSKIRK HOSPITAL NHS TRUST,34558277,"-35,939.00",
Department of Health,St. Helens&Knowsley Hospitals NHS Trust,30/06/2020,Miscellaneous Expenditure,HSDU WHISTON,SYNERGY HEALTH (UK) LTD,34670699,"175,882.15",
Department of Health,St. Helens&Knowsley Hospitals NHS Trust,30/06/2020,Mobile Phones,A + E NURSING WHISTON,VODAFONE LTD,34635977,17.89,
Department of Health,St. Helens&Knowsley Hospitals NHS Trust,30/06/2020,Mobile Phones,A + E NURSING WHISTON,VODAFONE LTD,34635977,90.00,
Department of Health,St. Helens&Knowsley Hospitals NHS Trust,30/06/2020,Mobile Phones,ACUTE KIDNEY INJURY SERVICE,VODAFONE LTD,34635977,5.96,
Department of Health,St. Helens&Knowsley Hospitals NHS Trust,30/06/2020,Mobile Phones,ACUTE KIDNEY INJURY SERVICE,VODAFONE LTD,34635977,30.00,
Department of Health,St. Helens&Knowsley Hospitals NHS Trust,30/06/2020,Mobile Phones,ACUTE MEDICAL UNIT,VODAFONE LTD,34635977,5.96,
Department of Health,St. Helens&Knowsley Hospitals NHS Trust,30/06/2020,Mobile Phones,ACUTE MEDICAL UNIT,VODAFONE LTD,34635977,30.00,
Department of Health,St. Helens&Knowsley Hospitals NHS Trust,30/06/2020,Mobile Phones,AMU NURSE SPECIALISTS,VODAFONE LTD,34635977,41.95,
Department of Health,St. Helens&Knowsley Hospitals NHS Trust,30/06/2020,Mobile Phones,AMU NURSE SPECIALISTS,VODAFONE LTD,34635977,211.04,
Department of Health,St. Helens&Knowsley Hospitals NHS Trust,30/06/2020,Mobile Phones,B + P DRESSINGS CLINIC,VODAFONE LTD,34635977,5.96,
Department of Health,St. Helens&Knowsley Hospitals NHS Trust,30/06/2020,Mobile Phones,B + P DRESSINGS CLINIC,VODAFONE LTD,34635977,30.00,
Department of Health,St. Helens&Knowsley Hospitals NHS Trust,30/06/2020,Mobile Phones,B + P MEDICAL PHOTOGRAPHY,VODAFONE LTD,34635977,11.93,
Department of Health,St. Helens&Knowsley Hospitals NHS Trust,30/06/2020,Mobile Phones,B + P MEDICAL PHOTOGRAPHY,VODAFONE LTD,34635977,60.00,
Department of Health,St. Helens&Knowsley Hospitals NHS Trust,30/06/2020,Mobile Phones,B + P MEDICAL STAFF,VODAFONE LTD,34635977,22.51,
Department of Health,St. Helens&Knowsley Hospitals NHS Trust,30/06/2020,Mobile Phones,B + P MEDICAL STAFF,VODAFONE LTD,34635977,113.23,
Department of Health,St. Helens&Knowsley Hospitals NHS Trust,30/06/2020,Mobile Phones,BED MANAGEMENT,VODAFONE LTD,34635977,31.31,
Department of Health,St. Helens&Knowsley Hospitals NHS Trust,30/06/2020,Mobile Phones,BED MANAGEMENT,VODAFONE LTD,34635977,157.50,
Department of Health,St. Helens&Knowsley Hospitals NHS Trust,30/06/2020,Mobile Phones,BUSINESS RELATIONSHIPS,VODAFONE LTD,34635977,5.96,
Department of Health,St. Helens&Knowsley Hospitals NHS Trust,30/06/2020,Mobile Phones,BUSINESS RELATIONSHIPS,VODAFONE LTD,34635977,30.00,
Department of Health,St. Helens&Knowsley Hospitals NHS Trust,30/06/2020,Mobile Phones,C.O.P.D SERVICE (KPCT),VODAFONE LTD,34635977,1.49,
Department of Health,St. Helens&Knowsley Hospitals NHS Trust,30/06/2020,Mobile Phones,C.O.P.D SERVICE (KPCT),VODAFONE LTD,34635977,7.50,
Department of Health,St. Helens&Knowsley Hospitals NHS Trust,30/06/2020,Mobile Phones,C.O.P.D SERVICE (STHPCT),VODAFONE LTD,34635977,62.93,
Department of Health,St. Helens&Knowsley Hospitals NHS Trust,30/06/2020,Mobile Phones,C.O.P.D SERVICE (STHPCT),VODAFONE LTD,34635977,316.62,
Department of Health,St. Helens&Knowsley Hospitals NHS Trust,30/06/2020,Mobile Phones,CANCER NURSE SPEC MCG,VODAFONE LTD,34635977,11.93,
Department of Health,St. Helens&Knowsley Hospitals NHS Trust,30/06/2020,Mobile Phones,CANCER NURSE SPEC MCG,VODAFONE LTD,34635977,60.00,
Department of Health,St. Helens&Knowsley Hospitals NHS Trust,30/06/2020,Mobile Phones,CANCER NURSE SPEC SCG,VODAFONE LTD,34635977,11.63,
Department of Health,St. Helens&Knowsley Hospitals NHS Trust,30/06/2020,Mobile Phones,CANCER NURSE SPEC SCG,VODAFONE LTD,34635977,58.50,
Department of Health,St. Helens&Knowsley Hospitals NHS Trust,30/06/2020,Mobile Phones,CANCER SERVICES - ADMIN,VODAFONE LTD,34635977,15.50,
Department of Health,St. Helens&Knowsley Hospitals NHS Trust,30/06/2020,Mobile Phones,CANCER SERVICES - ADMIN,VODAFONE LTD,34635977,78.00,
Department of Health,St. Helens&Knowsley Hospitals NHS Trust,30/06/2020,Mobile Phones,CANCER SVS CO-ORDINATION,VODAFONE LTD,34635977,38.76,
Department of Health,St. Helens&Knowsley Hospitals NHS Trust,30/06/2020,Mobile Phones,CANCER SVS CO-ORDINATION,VODAFONE LTD,34635977,195.00,
Department of Health,St. Helens&Knowsley Hospitals NHS Trust,30/06/2020,Mobile Phones,CARDIO-RESPIRATORY (ECG),VODAFONE LTD,34635977,7.51,
Department of Health,St. Helens&Knowsley Hospitals NHS Trust,30/06/2020,Mobile Phones,CARDIO-RESPIRATORY (ECG),VODAFONE LTD,34635977,37.80,
Department of Health,St. Helens&Knowsley Hospitals NHS Trust,30/06/2020,Mobile Phones,CARDIOLOGY SNR MEDICAL,VODAFONE LTD,34635977,21.90,
Department of Health,St. Helens&Knowsley Hospitals NHS Trust,30/06/2020,Mobile Phones,CARDIOLOGY SNR MEDICAL,VODAFONE LTD,34635977,110.16,
Department of Health,St. Helens&Knowsley Hospitals NHS Trust,30/06/2020,Mobile Phones,CARE OF ELDERLY MED STAFF,VODAFONE LTD,34635977,116.07,
Department of Health,St. Helens&Knowsley Hospitals NHS Trust,30/06/2020,Mobile Phones,CARE OF ELDERLY MED STAFF,VODAFONE LTD,34635977,583.94,
Department of Health,St. Helens&Knowsley Hospitals NHS Trust,30/06/2020,Mobile Phones,CHAIRMAN'S OFFICE,VODAFONE LTD,34635977,53.74,
Department of Health,St. Helens&Knowsley Hospitals NHS Trust,30/06/2020,Mobile Phones,CHAIRMAN'S OFFICE,VODAFONE LTD,34635977,270.35,
Department of Health,St. Helens&Knowsley Hospitals NHS Trust,30/06/2020,Mobile Phones,CHIEF EXECUTIVE'S OFFICE,VODAFONE LTD,34635977,62.29,
Department of Health,St. Helens&Knowsley Hospitals NHS Trust,30/06/2020,Mobile Phones,CHIEF EXECUTIVE'S OFFICE,VODAFONE LTD,34635977,313.37,
Department of Health,St. Helens&Knowsley Hospitals NHS Trust,30/06/2020,Mobile Phones,CLINICAL PSYCHOLOGY,VODAFONE LTD,34635977,7.45,
Department of Health,St. Helens&Knowsley Hospitals NHS Trust,30/06/2020,Mobile Phones,CLINICAL PSYCHOLOGY,VODAFONE LTD,34635977,37.50,
Department of Health,St. Helens&Knowsley Hospitals NHS Trust,30/06/2020,Mobile Phones,CLINICAL SUPPORT DIV MGMT,VODAFONE LTD,34635977,6.04,
Department of Health,St. Helens&Knowsley Hospitals NHS Trust,30/06/2020,Mobile Phones,CLINICAL SUPPORT DIV MGMT,VODAFONE LTD,34635977,30.40,
Department of Health,St. Helens&Knowsley Hospitals NHS Trust,30/06/2020,Mobile Phones,COE NURSE SPECIALISTS,VODAFONE LTD,34635977,13.51,
Department of Health,St. Helens&Knowsley Hospitals NHS Trust,30/06/2020,Mobile Phones,COE NURSE SPECIALISTS,VODAFONE LTD,34635977,67.99,
Department of Health,St. Helens&Knowsley Hospitals NHS Trust,30/06/2020,Mobile Phones,COLD DECONTAMINATION WHISTON,VODAFONE LTD,34635977,13.42,
Department of Health,St. Helens&Knowsley Hospitals NHS Trust,30/06/2020,Mobile Phones,COLD DECONTAMINATION WHISTON,VODAFONE LTD,34635977,67.50,
Department of Health,St. Helens&Knowsley Hospitals NHS Trust,30/06/2020,Mobile Phones,COMMUNICATIONS,VODAFONE LTD,34635977,29.64,
Department of Health,St. Helens&Knowsley Hospitals NHS Trust,30/06/2020,Mobile Phones,COMMUNICATIONS,VODAFONE LTD,34635977,149.14,
Department of Health,St. Helens&Knowsley Hospitals NHS Trust,30/06/2020,Mobile Phones,COMMUNITY CARDIAC TEAM,VODAFONE LTD,34635977,5.37,
Department of Health,St. Helens&Knowsley Hospitals NHS Trust,30/06/2020,Mobile Phones,COMMUNITY CARDIAC TEAM,VODAFONE LTD,34635977,27.00,
Department of Health,St. Helens&Knowsley Hospitals NHS Trust,30/06/2020,Mobile Phones,COMMUNITY CONTINENCE SERVICE,VODAFONE LTD,34635977,23.85,
Department of Health,St. Helens&Knowsley Hospitals NHS Trust,30/06/2020,Mobile Phones,COMMUNITY CONTINENCE SERVICE,VODAFONE LTD,34635977,120.00,
Department of Health,St. Helens&Knowsley Hospitals NHS Trust,30/06/2020,Mobile Phones,COMMUNITY FRAILTY SERVICE,VODAFONE LTD,34635977,58.54,
Department of Health,St. Helens&Knowsley Hospitals NHS Trust,30/06/2020,Mobile Phones,COMMUNITY FRAILTY SERVICE,VODAFONE LTD,34635977,294.52,
Department of Health,St. Helens&Knowsley Hospitals NHS Trust,30/06/2020,Mobile Phones,COMMUNITY MIDWIFERY,VODAFONE LTD,34635977,258.26,
Department of Health,St. Helens&Knowsley Hospitals NHS Trust,30/06/2020,Mobile Phones,COMMUNITY MIDWIFERY,VODAFONE LTD,34635977,"1,299.32",
Department of Health,St. Helens&Knowsley Hospitals NHS Trust,30/06/2020,Mobile Phones,COMMUNITY SLA'S,VODAFONE LTD,34635977,35.92,
Department of Health,St. Helens&Knowsley Hospitals NHS Trust,30/06/2020,Mobile Phones,COMMUNITY SLA'S,VODAFONE LTD,34635977,180.72,
Department of Health,St. Helens&Knowsley Hospitals NHS Trust,30/06/2020,Mobile Phones,COVID,VODAFONE LTD,34635977,6.35,
Department of Health,St. Helens&Knowsley Hospitals NHS Trust,30/06/2020,Mobile Phones,COVID,VODAFONE LTD,34635977,31.94,
Department of Health,St. Helens&Knowsley Hospitals NHS Trust,30/06/2020,Mobile Phones,Cancer Core Staff and Non-Pay,VODAFONE LTD,34635977,5.96,
Department of Health,St. Helens&Knowsley Hospitals NHS Trust,30/06/2020,Mobile Phones,Cancer Core Staff and Non-Pay,VODAFONE LTD,34635977,30.00,
Department of Health,St. Helens&Knowsley Hospitals NHS Trust,30/06/2020,Mobile Phones,Cold Decontamination,VODAFONE LTD,34635977,5.96,
Department of Health,St. Helens&Knowsley Hospitals NHS Trust,30/06/2020,Mobile Phones,Cold Decontamination,VODAFONE LTD,34635977,30.00,
Department of Health,St. Helens&Knowsley Hospitals NHS Trust,30/06/2020,Mobile Phones,DIABETES NURSING,VODAFONE LTD,34635977,11.93,
Department of Health,St. Helens&Knowsley Hospitals NHS Trust,30/06/2020,Mobile Phones,DIABETES NURSING,VODAFONE LTD,34635977,60.00,
Department of Health,St. Helens&Knowsley Hospitals NHS Trust,30/06/2020,Mobile Phones,DIABETES SNR MEDICAL,VODAFONE LTD,34635977,11.93,
Department of Health,St. Helens&Knowsley Hospitals NHS Trust,30/06/2020,Mobile Phones,DIABETES SNR MEDICAL,VODAFONE LTD,34635977,60.00,
Department of Health,St. Helens&Knowsley Hospitals NHS Trust,30/06/2020,Mobile Phones,DIABETES STP,VODAFONE LTD,34635977,71.56,
Department of Health,St. Helens&Knowsley Hospitals NHS Trust,30/06/2020,Mobile Phones,DIABETES STP,VODAFONE LTD,34635977,360.00,
Department of Health,St. Helens&Knowsley Hospitals NHS Trust,30/06/2020,Mobile Phones,EAST MIDLANDS HEE,VODAFONE LTD,34635977,11.93,
Department of Health,St. Helens&Knowsley Hospitals NHS Trust,30/06/2020,Mobile Phones,EAST MIDLANDS HEE,VODAFONE LTD,34635977,60.00,
Department of Health,St. Helens&Knowsley Hospitals NHS Trust,30/06/2020,Mobile Phones,EMERGENCY PLANNING,VODAFONE LTD,34635977,6.06,
Department of Health,St. Helens&Knowsley Hospitals NHS Trust,30/06/2020,Mobile Phones,EMERGENCY PLANNING,VODAFONE LTD,34635977,30.51,
Department of Health,St. Helens&Knowsley Hospitals NHS Trust,30/06/2020,Mobile Phones,ENT MEDICAL STAFF,VODAFONE LTD,34635977,5.96,
Department of Health,St. Helens&Knowsley Hospitals NHS Trust,30/06/2020,Mobile Phones,ENT MEDICAL STAFF,VODAFONE LTD,34635977,30.00,
Department of Health,St. Helens&Knowsley Hospitals NHS Trust,30/06/2020,Mobile Phones,EPMA,VODAFONE LTD,34635977,11.93,
Department of Health,St. Helens&Knowsley Hospitals NHS Trust,30/06/2020,Mobile Phones,EPMA,VODAFONE LTD,34635977,60.00,
Department of Health,St. Helens&Knowsley Hospitals NHS Trust,30/06/2020,Mobile Phones,ESTATE SURVEY SECTION,VODAFONE LTD,34635977,5.96,
Department of Health,St. Helens&Knowsley Hospitals NHS Trust,30/06/2020,Mobile Phones,ESTATE SURVEY SECTION,VODAFONE LTD,34635977,30.00,
Department of Health,St. Helens&Knowsley Hospitals NHS Trust,30/06/2020,Mobile Phones,EXECUTIVE PAYROLL,VODAFONE LTD,34635977,30.71,
Department of Health,St. Helens&Knowsley Hospitals NHS Trust,30/06/2020,Mobile Phones,EXECUTIVE PAYROLL,VODAFONE LTD,34635977,154.50,
Department of Health,St. Helens&Knowsley Hospitals NHS Trust,30/06/2020,Mobile Phones,FACILITIES MANAGEMENT,VODAFONE LTD,34635977,31.31,
Department of Health,St. Helens&Knowsley Hospitals NHS Trust,30/06/2020,Mobile Phones,FACILITIES MANAGEMENT,VODAFONE LTD,34635977,157.50,
Department of Health,St. Helens&Knowsley Hospitals NHS Trust,30/06/2020,Mobile Phones,FALLS NURSE,VODAFONE LTD,34635977,6.11,
Department of Health,St. Helens&Knowsley Hospitals NHS Trust,30/06/2020,Mobile Phones,FALLS NURSE,VODAFONE LTD,34635977,30.75,
Department of Health,St. Helens&Knowsley Hospitals NHS Trust,30/06/2020,Mobile Phones,FINANCE DIRECTORATE HQ,VODAFONE LTD,34635977,11.93,
Department of Health,St. Helens&Knowsley Hospitals NHS Trust,30/06/2020,Mobile Phones,FINANCE DIRECTORATE HQ,VODAFONE LTD,34635977,60.00,
Department of Health,St. Helens&Knowsley Hospitals NHS Trust,30/06/2020,Mobile Phones,GASTRO UPPER GI FUND,VODAFONE LTD,34635977,5.96,
Department of Health,St. Helens&Knowsley Hospitals NHS Trust,30/06/2020,Mobile Phones,GASTRO UPPER GI FUND,VODAFONE LTD,34635977,30.00,
Department of Health,St. Helens&Knowsley Hospitals NHS Trust,30/06/2020,Mobile Phones,GASTROLOGY NURSING,VODAFONE LTD,34635977,47.70,
Department of Health,St. Helens&Knowsley Hospitals NHS Trust,30/06/2020,Mobile Phones,GASTROLOGY NURSING,VODAFONE LTD,34635977,240.00,
Department of Health,St. Helens&Knowsley Hospitals NHS Trust,30/06/2020,Mobile Phones,GASTROLOGY SNR MEDICAL,VODAFONE LTD,34635977,50.40,
Department of Health,St. Helens&Knowsley Hospitals NHS Trust,30/06/2020,Mobile Phones,GASTROLOGY SNR MEDICAL,VODAFONE LTD,34635977,253.57,
Department of Health,St. Helens&Knowsley Hospitals NHS Trust,30/06/2020,Mobile Phones,GEN MEDICINE MEDICAL STF,VODAFONE LTD,34635977,23.85,
Department of Health,St. Helens&Knowsley Hospitals NHS Trust,30/06/2020,Mobile Phones,GEN MEDICINE MEDICAL STF,VODAFONE LTD,34635977,120.00,
Department of Health,St. Helens&Knowsley Hospitals NHS Trust,30/06/2020,Mobile Phones,GENERAL SURGERY MEDICAL,VODAFONE LTD,34635977,25.34,
Department of Health,St. Helens&Knowsley Hospitals NHS Trust,30/06/2020,Mobile Phones,GENERAL SURGERY MEDICAL,VODAFONE LTD,34635977,127.50,
Department of Health,St. Helens&Knowsley Hospitals NHS Trust,30/06/2020,Mobile Phones,HAEM + BLOOD TRANSFUSION,VODAFONE LTD,34635977,23.85,
Department of Health,St. Helens&Knowsley Hospitals NHS Trust,30/06/2020,Mobile Phones,HAEM + BLOOD TRANSFUSION,VODAFONE LTD,34635977,120.00,
Department of Health,St. Helens&Knowsley Hospitals NHS Trust,30/06/2020,Mobile Phones,HAEMATOLOGY MEDICAL,VODAFONE LTD,34635977,17.89,
Department of Health,St. Helens&Knowsley Hospitals NHS Trust,30/06/2020,Mobile Phones,HAEMATOLOGY MEDICAL,VODAFONE LTD,34635977,90.00,
Department of Health,St. Helens&Knowsley Hospitals NHS Trust,30/06/2020,Mobile Phones,HAIRDRESSER ST HELENS,VODAFONE LTD,34635977,5.96,
Department of Health,St. Helens&Knowsley Hospitals NHS Trust,30/06/2020,Mobile Phones,HAIRDRESSER ST HELENS,VODAFONE LTD,34635977,30.00,
Department of Health,St. Helens&Knowsley Hospitals NHS Trust,30/06/2020,Mobile Phones,HIS programme costs - shared services,VODAFONE LTD,34635977,237.64,
Department of Health,St. Helens&Knowsley Hospitals NHS Trust,30/06/2020,Mobile Phones,HIS programme costs - shared services,VODAFONE LTD,34635977,"1,195.58",
Department of Health,St. Helens&Knowsley Hospitals NHS Trust,30/06/2020,Mobile Phones,HISTOPATHOLOGY/MORTUARY,VODAFONE LTD,34635977,3.04,
Department of Health,St. Helens&Knowsley Hospitals NHS Trust,30/06/2020,Mobile Phones,HISTOPATHOLOGY/MORTUARY,VODAFONE LTD,34635977,15.30,
Department of Health,St. Helens&Knowsley Hospitals NHS Trust,30/06/2020,Mobile Phones,HOSPITAL DISCHARGE TEAM,VODAFONE LTD,34635977,5.96,
Department of Health,St. Helens&Knowsley Hospitals NHS Trust,30/06/2020,Mobile Phones,HOSPITAL DISCHARGE TEAM,VODAFONE LTD,34635977,30.00,
Department of Health,St. Helens&Knowsley Hospitals NHS Trust,30/06/2020,Mobile Phones,HSDU WHISTON,VODAFONE LTD,34635977,6.08,
Department of Health,St. Helens&Knowsley Hospitals NHS Trust,30/06/2020,Mobile Phones,HSDU WHISTON,VODAFONE LTD,34635977,30.61,
Department of Health,St. Helens&Knowsley Hospitals NHS Trust,30/06/2020,Mobile Phones,HUMAN RESOURCES - CORE HR,VODAFONE LTD,34635977,10.36,
Department of Health,St. Helens&Knowsley Hospitals NHS Trust,30/06/2020,Mobile Phones,HUMAN RESOURCES - CORE HR,VODAFONE LTD,34635977,52.14,
Department of Health,St. Helens&Knowsley Hospitals NHS Trust,30/06/2020,Mobile Phones,HUMAN RESOURCES - RESOURCING,VODAFONE LTD,34635977,252.97,
Department of Health,St. Helens&Knowsley Hospitals NHS Trust,30/06/2020,Mobile Phones,HUMAN RESOURCES - RESOURCING,VODAFONE LTD,34635977,"1,272.71",
Department of Health,St. Helens&Knowsley Hospitals NHS Trust,30/06/2020,Mobile Phones,INFANT FEEDING TEAM,VODAFONE LTD,34635977,23.90,
Department of Health,St. Helens&Knowsley Hospitals NHS Trust,30/06/2020,Mobile Phones,INFANT FEEDING TEAM,VODAFONE LTD,34635977,120.25,
Department of Health,St. Helens&Knowsley Hospitals NHS Trust,30/06/2020,Mobile Phones,INFECTION CONTROL,VODAFONE LTD,34635977,15.43,
Department of Health,St. Helens&Knowsley Hospitals NHS Trust,30/06/2020,Mobile Phones,INFECTION CONTROL,VODAFONE LTD,34635977,77.61,
Department of Health,St. Helens&Knowsley Hospitals NHS Trust,30/06/2020,Mobile Phones,INFORMATION DEPARTMENT,VODAFONE LTD,34635977,20.57,
Department of Health,St. Helens&Knowsley Hospitals NHS Trust,30/06/2020,Mobile Phones,INFORMATION DEPARTMENT,VODAFONE LTD,34635977,103.50,
Department of Health,St. Helens&Knowsley Hospitals NHS Trust,30/06/2020,Mobile Phones,IV THERAPY ST HELENS,VODAFONE LTD,34635977,35.78,
Department of Health,St. Helens&Knowsley Hospitals NHS Trust,30/06/2020,Mobile Phones,IV THERAPY ST HELENS,VODAFONE LTD,34635977,180.00,
Department of Health,St. Helens&Knowsley Hospitals NHS Trust,30/06/2020,Mobile Phones,LEGAL SERVICES,VODAFONE LTD,34635977,5.96,
Department of Health,St. Helens&Knowsley Hospitals NHS Trust,30/06/2020,Mobile Phones,LEGAL SERVICES,VODAFONE LTD,34635977,30.00,
Department of Health,St. Helens&Knowsley Hospitals NHS Trust,30/06/2020,Mobile Phones,LIBRARY SERVICES,VODAFONE LTD,34635977,5.96,
Department of Health,St. Helens&Knowsley Hospitals NHS Trust,30/06/2020,Mobile Phones,LIBRARY SERVICES,VODAFONE LTD,34635977,30.00,
Department of Health,St. Helens&Knowsley Hospitals NHS Trust,30/06/2020,Mobile Phones,MARSHALLS CROSS MEDICAL CENTRE,VODAFONE LTD,34635977,5.96,
Department of Health,St. Helens&Knowsley Hospitals NHS Trust,30/06/2020,Mobile Phones,MARSHALLS CROSS MEDICAL CENTRE,VODAFONE LTD,34635977,30.00,
Department of Health,St. Helens&Knowsley Hospitals NHS Trust,30/06/2020,Mobile Phones,MATERNITY THEATRES EMERGENCY WEEKDAYS,VODAFONE LTD,34635977,1.49,
Department of Health,St. Helens&Knowsley Hospitals NHS Trust,30/06/2020,Mobile Phones,MATERNITY THEATRES EMERGENCY WEEKDAYS,VODAFONE LTD,34635977,7.50,
Department of Health,St. Helens&Knowsley Hospitals NHS Trust,30/06/2020,Mobile Phones,MEDICAL CARE GROUP MGT,VODAFONE LTD,34635977,286.19,
Department of Health,St. Helens&Knowsley Hospitals NHS Trust,30/06/2020,Mobile Phones,MEDICAL CARE GROUP MGT,VODAFONE LTD,34635977,"1,439.66",
Department of Health,St. Helens&Knowsley Hospitals NHS Trust,30/06/2020,Mobile Phones,MGMT SPECIALIST MIDWIVES,VODAFONE LTD,34635977,89.49,
Department of Health,St. Helens&Knowsley Hospitals NHS Trust,30/06/2020,Mobile Phones,MGMT SPECIALIST MIDWIVES,VODAFONE LTD,34635977,450.24,
Department of Health,St. Helens&Knowsley Hospitals NHS Trust,30/06/2020,Mobile Phones,MICROBIOLOGY DEPT,VODAFONE LTD,34635977,40.85,
Department of Health,St. Helens&Knowsley Hospitals NHS Trust,30/06/2020,Mobile Phones,MICROBIOLOGY DEPT,VODAFONE LTD,34635977,205.50,
Department of Health,St. Helens&Knowsley Hospitals NHS Trust,30/06/2020,Mobile Phones,MICROBIOLOGY MED STAFF,VODAFONE LTD,34635977,11.93,
Department of Health,St. Helens&Knowsley Hospitals NHS Trust,30/06/2020,Mobile Phones,MICROBIOLOGY MED STAFF,VODAFONE LTD,34635977,60.00,
Department of Health,St. Helens&Knowsley Hospitals NHS Trust,30/06/2020,Mobile Phones,NEWTON INTERMEDIATE CARE SERVICE,VODAFONE LTD,34635977,22.36,
Department of Health,St. Helens&Knowsley Hospitals NHS Trust,30/06/2020,Mobile Phones,NEWTON INTERMEDIATE CARE SERVICE,VODAFONE LTD,34635977,112.50,
Department of Health,St. Helens&Knowsley Hospitals NHS Trust,30/06/2020,Mobile Phones,NORTH WEST HEE,VODAFONE LTD,34635977,108.72,
Department of Health,St. Helens&Knowsley Hospitals NHS Trust,30/06/2020,Mobile Phones,NORTH WEST HEE,VODAFONE LTD,34635977,546.96,
Department of Health,St. Helens&Knowsley Hospitals NHS Trust,30/06/2020,Mobile Phones,NURSING ADMINISTRATION,VODAFONE LTD,34635977,119.84,
Department of Health,St. Helens&Knowsley Hospitals NHS Trust,30/06/2020,Mobile Phones,NURSING ADMINISTRATION,VODAFONE LTD,34635977,602.90,
Department of Health,St. Helens&Knowsley Hospitals NHS Trust,30/06/2020,Mobile Phones,Nursing Director Admin Staff,VODAFONE LTD,34635977,5.96,
Department of Health,St. Helens&Knowsley Hospitals NHS Trust,30/06/2020,Mobile Phones,Nursing Director Admin Staff,VODAFONE LTD,34635977,30.00,
Department of Health,St. Helens&Knowsley Hospitals NHS Trust,30/06/2020,Mobile Phones,OBS + GYNAE MEDICAL STAFF,VODAFONE LTD,34635977,17.89,
Department of Health,St. Helens&Knowsley Hospitals NHS Trust,30/06/2020,Mobile Phones,OBS + GYNAE MEDICAL STAFF,VODAFONE LTD,34635977,90.00,
Department of Health,St. Helens&Knowsley Hospitals NHS Trust,30/06/2020,Mobile Phones,OCCUPATIONAL HEALTH NURS,VODAFONE LTD,34635977,25.90,
Department of Health,St. Helens&Knowsley Hospitals NHS Trust,30/06/2020,Mobile Phones,OCCUPATIONAL HEALTH NURS,VODAFONE LTD,34635977,130.32,
Department of Health,St. Helens&Knowsley Hospitals NHS Trust,30/06/2020,Mobile Phones,ORGANISATIONAL L And D,VODAFONE LTD,34635977,1.49,
Department of Health,St. Helens&Knowsley Hospitals NHS Trust,30/06/2020,Mobile Phones,ORGANISATIONAL L And D,VODAFONE LTD,34635977,7.50,
Department of Health,St. Helens&Knowsley Hospitals NHS Trust,30/06/2020,Mobile Phones,ORTHOPAEDIC MEDICAL STAFF,VODAFONE LTD,34635977,18.87,
Department of Health,St. Helens&Knowsley Hospitals NHS Trust,30/06/2020,Mobile Phones,ORTHOPAEDIC MEDICAL STAFF,VODAFONE LTD,34635977,94.92,
Department of Health,St. Helens&Knowsley Hospitals NHS Trust,30/06/2020,Mobile Phones,OUTPATIENTS ST HELENS,VODAFONE LTD,34635977,5.96,
Department of Health,St. Helens&Knowsley Hospitals NHS Trust,30/06/2020,Mobile Phones,OUTPATIENTS ST HELENS,VODAFONE LTD,34635977,30.00,
Department of Health,St. Helens&Knowsley Hospitals NHS Trust,30/06/2020,Mobile Phones,PAED SPECIALIST NURSES,VODAFONE LTD,34635977,16.69,
Department of Health,St. Helens&Knowsley Hospitals NHS Trust,30/06/2020,Mobile Phones,PAED SPECIALIST NURSES,VODAFONE LTD,34635977,83.99,
Department of Health,St. Helens&Knowsley Hospitals NHS Trust,30/06/2020,Mobile Phones,PAEDIATRIC MEDICAL STAFF,VODAFONE LTD,34635977,68.50,
Department of Health,St. Helens&Knowsley Hospitals NHS Trust,30/06/2020,Mobile Phones,PAEDIATRIC MEDICAL STAFF,VODAFONE LTD,34635977,344.62,
Department of Health,St. Helens&Knowsley Hospitals NHS Trust,30/06/2020,Mobile Phones,PAEDIATRICS WARD CLERKS,VODAFONE LTD,34635977,1.49,
Department of Health,St. Helens&Knowsley Hospitals NHS Trust,30/06/2020,Mobile Phones,PAEDIATRICS WARD CLERKS,VODAFONE LTD,34635977,7.50,
Department of Health,St. Helens&Knowsley Hospitals NHS Trust,30/06/2020,Mobile Phones,PALLIATIVE CARE WHISTON,VODAFONE LTD,34635977,17.95,
Department of Health,St. Helens&Knowsley Hospitals NHS Trust,30/06/2020,Mobile Phones,PALLIATIVE CARE WHISTON,VODAFONE LTD,34635977,90.31,
Department of Health,St. Helens&Knowsley Hospitals NHS Trust,30/06/2020,Mobile Phones,PATHOLOGY GENERAL,VODAFONE LTD,34635977,90.95,
Department of Health,St. Helens&Knowsley Hospitals NHS Trust,30/06/2020,Mobile Phones,PATHOLOGY GENERAL,VODAFONE LTD,34635977,457.55,
Department of Health,St. Helens&Knowsley Hospitals NHS Trust,30/06/2020,Mobile Phones,PATIENT ACCESS MGMT,VODAFONE LTD,34635977,17.89,
Department of Health,St. Helens&Knowsley Hospitals NHS Trust,30/06/2020,Mobile Phones,PATIENT ACCESS MGMT,VODAFONE LTD,34635977,90.00,
Department of Health,St. Helens&Knowsley Hospitals NHS Trust,30/06/2020,Mobile Phones,PAYING PATIENTS,VODAFONE LTD,34635977,17.89,
Department of Health,St. Helens&Knowsley Hospitals NHS Trust,30/06/2020,Mobile Phones,PAYING PATIENTS,VODAFONE LTD,34635977,90.00,
Department of Health,St. Helens&Knowsley Hospitals NHS Trust,30/06/2020,Mobile Phones,PAYROLL SERVICES,VODAFONE LTD,34635977,41.53,
Department of Health,St. Helens&Knowsley Hospitals NHS Trust,30/06/2020,Mobile Phones,PAYROLL SERVICES,VODAFONE LTD,34635977,208.94,
Department of Health,St. Helens&Knowsley Hospitals NHS Trust,30/06/2020,Mobile Phones,PFI DESIGN + CONSTRUCTION,VODAFONE LTD,34635977,34.78,
Department of Health,St. Helens&Knowsley Hospitals NHS Trust,30/06/2020,Mobile Phones,PFI DESIGN + CONSTRUCTION,VODAFONE LTD,34635977,175.00,
Department of Health,St. Helens&Knowsley Hospitals NHS Trust,30/06/2020,Mobile Phones,PHARMACY GENERAL,VODAFONE LTD,34635977,92.58,
Department of Health,St. Helens&Knowsley Hospitals NHS Trust,30/06/2020,Mobile Phones,PHARMACY GENERAL,VODAFONE LTD,34635977,465.78,
Department of Health,St. Helens&Knowsley Hospitals NHS Trust,30/06/2020,Mobile Phones,PROJECTS And TRAINING,VODAFONE LTD,34635977,19.49,
Department of Health,St. Helens&Knowsley Hospitals NHS Trust,30/06/2020,Mobile Phones,PROJECTS And TRAINING,VODAFONE LTD,34635977,98.05,
Department of Health,St. Helens&Knowsley Hospitals NHS Trust,30/06/2020,Mobile Phones,Patient Safety,VODAFONE LTD,34635977,10.46,
Department of Health,St. Helens&Knowsley Hospitals NHS Trust,30/06/2020,Mobile Phones,Patient Safety,VODAFONE LTD,34635977,52.62,
Department of Health,St. Helens&Knowsley Hospitals NHS Trust,30/06/2020,Mobile Phones,RADIOGRAPHY WHISTON,VODAFONE LTD,34635977,6.11,
Department of Health,St. Helens&Knowsley Hospitals NHS Trust,30/06/2020,Mobile Phones,RADIOGRAPHY WHISTON,VODAFONE LTD,34635977,30.75,
Department of Health,St. Helens&Knowsley Hospitals NHS Trust,30/06/2020,Mobile Phones,RADIOLOGY MEDICAL STAFF,VODAFONE LTD,34635977,11.93,
Department of Health,St. Helens&Knowsley Hospitals NHS Trust,30/06/2020,Mobile Phones,RADIOLOGY MEDICAL STAFF,VODAFONE LTD,34635977,60.00,
Department of Health,St. Helens&Knowsley Hospitals NHS Trust,30/06/2020,Mobile Phones,RD and I,VODAFONE LTD,34635977,19.38,
Department of Health,St. Helens&Knowsley Hospitals NHS Trust,30/06/2020,Mobile Phones,RD and I,VODAFONE LTD,34635977,97.50,
Department of Health,St. Helens&Knowsley Hospitals NHS Trust,30/06/2020,Mobile Phones,REABLEMENT TEAM,VODAFONE LTD,34635977,23.85,
Department of Health,St. Helens&Knowsley Hospitals NHS Trust,30/06/2020,Mobile Phones,REABLEMENT TEAM,VODAFONE LTD,34635977,120.00,
Department of Health,St. Helens&Knowsley Hospitals NHS Trust,30/06/2020,Mobile Phones,REGIONAL CANCER TRANSFORMATION,VODAFONE LTD,34635977,7.13,
Department of Health,St. Helens&Knowsley Hospitals NHS Trust,30/06/2020,Mobile Phones,REGIONAL CANCER TRANSFORMATION,VODAFONE LTD,34635977,35.86,
Department of Health,St. Helens&Knowsley Hospitals NHS Trust,30/06/2020,Mobile Phones,RESPIRATORY NURSING,VODAFONE LTD,34635977,23.85,
Department of Health,St. Helens&Knowsley Hospitals NHS Trust,30/06/2020,Mobile Phones,RESPIRATORY NURSING,VODAFONE LTD,34635977,120.00,
Department of Health,St. Helens&Knowsley Hospitals NHS Trust,30/06/2020,Mobile Phones,RESPIRATORY SNR MEDICAL,VODAFONE LTD,34635977,31.31,
Department of Health,St. Helens&Knowsley Hospitals NHS Trust,30/06/2020,Mobile Phones,RESPIRATORY SNR MEDICAL,VODAFONE LTD,34635977,157.50,
Department of Health,St. Helens&Knowsley Hospitals NHS Trust,30/06/2020,Mobile Phones,Resuscitation Training,VODAFONE LTD,34635977,5.96,
Department of Health,St. Helens&Knowsley Hospitals NHS Trust,30/06/2020,Mobile Phones,Resuscitation Training,VODAFONE LTD,34635977,30.00,
Department of Health,St. Helens&Knowsley Hospitals NHS Trust,30/06/2020,Mobile Phones,SAFEGUARDING,VODAFONE LTD,34635977,5.96,
Department of Health,St. Helens&Knowsley Hospitals NHS Trust,30/06/2020,Mobile Phones,SAFEGUARDING,VODAFONE LTD,34635977,30.00,
Department of Health,St. Helens&Knowsley Hospitals NHS Trust,30/06/2020,Mobile Phones,SANDERSON SUITE GENERAL SURGERY,VODAFONE LTD,34635977,22.83,
Department of Health,St. Helens&Knowsley Hospitals NHS Trust,30/06/2020,Mobile Phones,SANDERSON SUITE GENERAL SURGERY,VODAFONE LTD,34635977,114.84,
Department of Health,St. Helens&Knowsley Hospitals NHS Trust,30/06/2020,Mobile Phones,SEPSIS,VODAFONE LTD,34635977,5.96,
Department of Health,St. Helens&Knowsley Hospitals NHS Trust,30/06/2020,Mobile Phones,SEPSIS,VODAFONE LTD,34635977,30.00,
Department of Health,St. Helens&Knowsley Hospitals NHS Trust,30/06/2020,Mobile Phones,SERV INCR 4 TEACHING-SIFT,VODAFONE LTD,34635977,32.04,
Department of Health,St. Helens&Knowsley Hospitals NHS Trust,30/06/2020,Mobile Phones,SERV INCR 4 TEACHING-SIFT,VODAFONE LTD,34635977,161.17,
Department of Health,St. Helens&Knowsley Hospitals NHS Trust,30/06/2020,Mobile Phones,SEXUAL HEALTH,VODAFONE LTD,34635977,79.14,
Department of Health,St. Helens&Knowsley Hospitals NHS Trust,30/06/2020,Mobile Phones,SEXUAL HEALTH,VODAFONE LTD,34635977,398.14,
Department of Health,St. Helens&Knowsley Hospitals NHS Trust,30/06/2020,Mobile Phones,SHARED CARE RECORD - ST HELENS HEALTH ECONOMY,VODAFONE LTD,34635977,152.80,
Department of Health,St. Helens&Knowsley Hospitals NHS Trust,30/06/2020,Mobile Phones,SHARED CARE RECORD - ST HELENS HEALTH ECONOMY,VODAFONE LTD,34635977,768.75,
Department of Health,St. Helens&Knowsley Hospitals NHS Trust,30/06/2020,Mobile Phones,SOHT Phlebotomy,VODAFONE LTD,34635977,17.89,
Department of Health,St. Helens&Knowsley Hospitals NHS Trust,30/06/2020,Mobile Phones,SOHT Phlebotomy,VODAFONE LTD,34635977,90.00,
Department of Health,St. Helens&Knowsley Hospitals NHS Trust,30/06/2020,Mobile Phones,ST HELENS REABLEMENT,VODAFONE LTD,34635977,2.98,
Department of Health,St. Helens&Knowsley Hospitals NHS Trust,30/06/2020,Mobile Phones,ST HELENS REABLEMENT,VODAFONE LTD,34635977,15.00,
Department of Health,St. Helens&Knowsley Hospitals NHS Trust,30/06/2020,Mobile Phones,SURGICAL CARE MANAGEMENT,VODAFONE LTD,34635977,77.52,
Department of Health,St. Helens&Knowsley Hospitals NHS Trust,30/06/2020,Mobile Phones,SURGICAL CARE MANAGEMENT,VODAFONE LTD,34635977,390.00,
Department of Health,St. Helens&Knowsley Hospitals NHS Trust,30/06/2020,Mobile Phones,SURGICAL CARE SECS,VODAFONE LTD,34635977,5.96,
Department of Health,St. Helens&Knowsley Hospitals NHS Trust,30/06/2020,Mobile Phones,SURGICAL CARE SECS,VODAFONE LTD,34635977,30.00,
Department of Health,St. Helens&Knowsley Hospitals NHS Trust,30/06/2020,Mobile Phones,Service Delivery Infrastructure,VODAFONE LTD,34635977,17.89,
Department of Health,St. Helens&Knowsley Hospitals NHS Trust,30/06/2020,Mobile Phones,Service Delivery Infrastructure,VODAFONE LTD,34635977,90.00,
Department of Health,St. Helens&Knowsley Hospitals NHS Trust,30/06/2020,Mobile Phones,Service Delivery Operations,VODAFONE LTD,34635977,5.96,
Department of Health,St. Helens&Knowsley Hospitals NHS Trust,30/06/2020,Mobile Phones,Service Delivery Operations,VODAFONE LTD,34635977,30.00,
Department of Health,St. Helens&Knowsley Hospitals NHS Trust,30/06/2020,Mobile Phones,THEATRES BURNS + PLASTICS,VODAFONE LTD,34635977,7.45,
Department of Health,St. Helens&Knowsley Hospitals NHS Trust,30/06/2020,Mobile Phones,THEATRES BURNS + PLASTICS,VODAFONE LTD,34635977,37.50,
Department of Health,St. Helens&Knowsley Hospitals NHS Trust,30/06/2020,Mobile Phones,THEATRES DIRECTORATE MGT,VODAFONE LTD,34635977,45.70,
Department of Health,St. Helens&Knowsley Hospitals NHS Trust,30/06/2020,Mobile Phones,THEATRES DIRECTORATE MGT,VODAFONE LTD,34635977,229.92,
Department of Health,St. Helens&Knowsley Hospitals NHS Trust,30/06/2020,Mobile Phones,THEATRES GEN SURGERY/UROL,VODAFONE LTD,34635977,4.47,
Department of Health,St. Helens&Knowsley Hospitals NHS Trust,30/06/2020,Mobile Phones,THEATRES GEN SURGERY/UROL,VODAFONE LTD,34635977,22.50,
Department of Health,St. Helens&Knowsley Hospitals NHS Trust,30/06/2020,Mobile Phones,THEATRES MAIN ST HELEN'S,VODAFONE LTD,34635977,6.35,
Department of Health,St. Helens&Knowsley Hospitals NHS Trust,30/06/2020,Mobile Phones,THEATRES MAIN ST HELEN'S,VODAFONE LTD,34635977,31.94,
Department of Health,St. Helens&Knowsley Hospitals NHS Trust,30/06/2020,Mobile Phones,THEATRES MATERNITY WH,VODAFONE LTD,34635977,5.96,
Department of Health,St. Helens&Knowsley Hospitals NHS Trust,30/06/2020,Mobile Phones,THEATRES MATERNITY WH,VODAFONE LTD,34635977,30.00,
Department of Health,St. Helens&Knowsley Hospitals NHS Trust,30/06/2020,Mobile Phones,THEATRES MEDICAL STAFF,VODAFONE LTD,34635977,5.96,
Department of Health,St. Helens&Knowsley Hospitals NHS Trust,30/06/2020,Mobile Phones,THEATRES MEDICAL STAFF,VODAFONE LTD,34635977,30.00,
Department of Health,St. Helens&Knowsley Hospitals NHS Trust,30/06/2020,Mobile Phones,THEATRES TRAU ORTHOPAEDIC,VODAFONE LTD,34635977,1.49,
Department of Health,St. Helens&Knowsley Hospitals NHS Trust,30/06/2020,Mobile Phones,THEATRES TRAU ORTHOPAEDIC,VODAFONE LTD,34635977,7.50,
Department of Health,St. Helens&Knowsley Hospitals NHS Trust,30/06/2020,Mobile Phones,THERAPY MANAGEMENT & ADMIN.,VODAFONE LTD,34635977,76.70,
Department of Health,St. Helens&Knowsley Hospitals NHS Trust,30/06/2020,Mobile Phones,THERAPY MANAGEMENT & ADMIN.,VODAFONE LTD,34635977,385.87,
Department of Health,St. Helens&Knowsley Hospitals NHS Trust,30/06/2020,Mobile Phones,TISSUE VIABILITY,VODAFONE LTD,34635977,1.49,
Department of Health,St. Helens&Knowsley Hospitals NHS Trust,30/06/2020,Mobile Phones,TISSUE VIABILITY,VODAFONE LTD,34635977,7.50,
Department of Health,St. Helens&Knowsley Hospitals NHS Trust,30/06/2020,Mobile Phones,Trust Recharges,VODAFONE LTD,34635977,157.52,
Department of Health,St. Helens&Knowsley Hospitals NHS Trust,30/06/2020,Mobile Phones,Trust Recharges,VODAFONE LTD,34635977,792.50,
Department of Health,St. Helens&Knowsley Hospitals NHS Trust,30/06/2020,Mobile Phones,UNIFIED COMMS PROJECT,VODAFONE LTD,34635977,19.05,
Department of Health,St. Helens&Knowsley Hospitals NHS Trust,30/06/2020,Mobile Phones,UNIFIED COMMS PROJECT,VODAFONE LTD,34635977,95.82,
Department of Health,St. Helens&Knowsley Hospitals NHS Trust,30/06/2020,Mobile Phones,UROLOGY MEDICAL STAFF,VODAFONE LTD,34635977,63.12,
Department of Health,St. Helens&Knowsley Hospitals NHS Trust,30/06/2020,Mobile Phones,UROLOGY MEDICAL STAFF,VODAFONE LTD,34635977,317.58,
Department of Health,St. Helens&Knowsley Hospitals NHS Trust,30/06/2020,Mobile Phones,UROLOGY SUITE,VODAFONE LTD,34635977,13.42,
Department of Health,St. Helens&Knowsley Hospitals NHS Trust,30/06/2020,Mobile Phones,UROLOGY SUITE,VODAFONE LTD,34635977,67.50,
Department of Health,St. Helens&Knowsley Hospitals NHS Trust,30/06/2020,Mobile Phones,WARD 1A FRAILTY,VODAFONE LTD,34635977,19.38,
Department of Health,St. Helens&Knowsley Hospitals NHS Trust,30/06/2020,Mobile Phones,WARD 1A FRAILTY,VODAFONE LTD,34635977,97.50,
Department of Health,St. Helens&Knowsley Hospitals NHS Trust,30/06/2020,Mobile Phones,WARD 1B ACUTE MEDICAL UNIT,VODAFONE LTD,34635977,11.93,
Department of Health,St. Helens&Knowsley Hospitals NHS Trust,30/06/2020,Mobile Phones,WARD 1B ACUTE MEDICAL UNIT,VODAFONE LTD,34635977,60.00,
Department of Health,St. Helens&Knowsley Hospitals NHS Trust,30/06/2020,Mobile Phones,WARD 1C ACUTE MEDICAL UNIT,VODAFONE LTD,34635977,11.93,
Department of Health,St. Helens&Knowsley Hospitals NHS Trust,30/06/2020,Mobile Phones,WARD 1C ACUTE MEDICAL UNIT,VODAFONE LTD,34635977,60.00,
Department of Health,St. Helens&Knowsley Hospitals NHS Trust,30/06/2020,Mobile Phones,WARD 3A PLASTICS,VODAFONE LTD,34635977,20.25,
Department of Health,St. Helens&Knowsley Hospitals NHS Trust,30/06/2020,Mobile Phones,WARD 3A PLASTICS,VODAFONE LTD,34635977,101.87,
Department of Health,St. Helens&Knowsley Hospitals NHS Trust,30/06/2020,Mobile Phones,WARD 3E GYNAECOLOGY,VODAFONE LTD,34635977,5.96,
Department of Health,St. Helens&Knowsley Hospitals NHS Trust,30/06/2020,Mobile Phones,WARD 3E GYNAECOLOGY,VODAFONE LTD,34635977,30.00,
Department of Health,St. Helens&Knowsley Hospitals NHS Trust,30/06/2020,Mobile Phones,WARD 3F PAEDIATRICS,VODAFONE LTD,34635977,17.02,
Department of Health,St. Helens&Knowsley Hospitals NHS Trust,30/06/2020,Mobile Phones,WARD 3F PAEDIATRICS,VODAFONE LTD,34635977,85.63,
Department of Health,St. Helens&Knowsley Hospitals NHS Trust,30/06/2020,Mobile Phones,WARD 4D BURNS,VODAFONE LTD,34635977,7.57,
Department of Health,St. Helens&Knowsley Hospitals NHS Trust,30/06/2020,Mobile Phones,WARD 4D BURNS,VODAFONE LTD,34635977,38.07,
Department of Health,St. Helens&Knowsley Hospitals NHS Trust,30/06/2020,Mobile Phones,WEST MIDLANDS HEE,VODAFONE LTD,34635977,43.40,
Department of Health,St. Helens&Knowsley Hospitals NHS Trust,30/06/2020,Mobile Phones,WEST MIDLANDS HEE,VODAFONE LTD,34635977,218.36,
Department of Health,St. Helens&Knowsley Hospitals NHS Trust,30/06/2020,Mobile Phones,WHIS THEATRES EMERG WKDAY NGTS WKEND,VODAFONE LTD,34635977,5.96,
Department of Health,St. Helens&Knowsley Hospitals NHS Trust,30/06/2020,Mobile Phones,WHIS THEATRES EMERG WKDAY NGTS WKEND,VODAFONE LTD,34635977,30.00,
Department of Health,St. Helens&Knowsley Hospitals NHS Trust,30/06/2020,Mobile Phones,WHISTON EQUIPMENT POOL,VODAFONE LTD,34635977,5.96,
Department of Health,St. Helens&Knowsley Hospitals NHS Trust,30/06/2020,Mobile Phones,WHISTON EQUIPMENT POOL,VODAFONE LTD,34635977,30.00,
Department of Health,St. Helens&Knowsley Hospitals NHS Trust,30/06/2020,Mobile Phones,WORKFORCE INTELLIGENCE,VODAFONE LTD,34635977,17.89,
Department of Health,St. Helens&Knowsley Hospitals NHS Trust,30/06/2020,Mobile Phones,WORKFORCE INTELLIGENCE,VODAFONE LTD,34635977,90.00,
Department of Health,St. Helens&Knowsley Hospitals NHS Trust,30/06/2020,Various expense types,Various expense areas,SUPPLY CHAIN COORDINATION LIMITED,34527898,"110,898.94",
Department of Health,St. Helens&Knowsley Hospitals NHS Trust,30/06/2020,Various expense types,Various expense areas,SUPPLY CHAIN COORDINATION LIMITED,34569902,"89,144.50",
Department of Health,St. Helens&Knowsley Hospitals NHS Trust,30/06/2020,Various expense types,Various expense areas,SUPPLY CHAIN COORDINATION LIMITED,34655268,"103,800.43",
Department of Health,St. Helens&Knowsley Hospitals NHS Trust,30/06/2020,Various expense types,Various expense areas,SUPPLY CHAIN COORDINATION LIMITED,34741548,"100,770.98",
Department of Health,St. Helens&Knowsley Hospitals NHS Trust,30/06/2020,Various expense types,Various expense areas,SUPPLY CHAIN COORDINATION LIMITED,34767932,"118,355.77",
Department of Health,St. Helens&Knowsley Hospitals NHS Trust,30/06/2020,Office Equipment,RD and I,CANON UK LTD,34175611,-70.14,
Department of Health,St. Helens&Knowsley Hospitals NHS Trust,30/06/2020,Printing Costs,GEN MED ENDOSCOPY H2,SUPPLY CHAIN COORDINATION LIMITED,34781682,"333,558.91",
Department of Health,St. Helens&Knowsley Hospitals NHS Trust,30/06/2020,Printing Costs,GEN MED ENDOSCOPY H2,SUPPLY CHAIN COORDINATION LIMITED,34781682,"83,602.22",
Department of Health,St. Helens&Knowsley Hospitals NHS Trust,30/06/2020,Protective Clothing,PURCHASING + SUPPLY DEPT,PHARMAPAC UK LIMITED,34657058,"39,950.00",
Department of Health,St. Helens&Knowsley Hospitals NHS Trust,30/06/2020,Protective Clothing,COVID,INTERSURGICAL LTD,34742893,"14,400.00",
Department of Health,St. Helens&Knowsley Hospitals NHS Trust,30/06/2020,Protective Clothing,COVID,INTERSURGICAL LTD,34742893,"14,400.00",
Department of Health,St. Helens&Knowsley Hospitals NHS Trust,30/06/2020,Protective Clothing,COVID,INTERSURGICAL LTD,34742893,"5,760.00",
Department of Health,St. Helens&Knowsley Hospitals NHS Trust,30/06/2020,Rates,RATES/WATER WHISTON,KNOWSLEY METROPOLITAN BOROUGH COUNCIL,34527728,"305,152.00",
Department of Health,St. Helens&Knowsley Hospitals NHS Trust,30/06/2020,Rates,RATES/WATER ST HELENS,ST HELENS COUNCIL,34527754,"60,416.00",
Department of Health,St. Helens&Knowsley Hospitals NHS Trust,30/06/2020,Rates,RATES/WATER WHISTON,KNOWSLEY METROPOLITAN BOROUGH COUNCIL,34726102,"305,152.00",
Department of Health,St. Helens&Knowsley Hospitals NHS Trust,30/06/2020,Rates,RATES/WATER ST HELENS,ST HELENS COUNCIL,34726106,"60,416.00",
Department of Health,St. Helens&Knowsley Hospitals NHS Trust,30/06/2020,Rent,HR Projects,OAKMERE ESTATES (LIVERPOOL) LTD,34635991,"2,535.60",
Department of Health,St. Helens&Knowsley Hospitals NHS Trust,30/06/2020,Rent,NORTH WEST HEE,OAKMERE ESTATES (LIVERPOOL) LTD,34635991,"45,165.60",
Department of Health,St. Helens&Knowsley Hospitals NHS Trust,30/06/2020,Rent,WORKFORCE INTELLIGENCE,OAKMERE ESTATES (LIVERPOOL) LTD,34635991,"6,298.80",
Department of Health,St. Helens&Knowsley Hospitals NHS Trust,30/06/2020,SrvcsRecd-FoundationTrust,ORTHOPAEDIC MEDICAL STAFF,NORTH WEST BOROUGHS HEALTHCARE NHS FOUNDATION TRUST,34527846,"31,444.00",
Department of Health,St. Helens&Knowsley Hospitals NHS Trust,30/06/2020,SrvcsRecd-FoundationTrust,A + E MEDICAL STAFF WH,NORTH WEST BOROUGHS HEALTHCARE NHS FOUNDATION TRUST,34569878,"83,777.00",
Department of Health,St. Helens&Knowsley Hospitals NHS Trust,30/06/2020,SrvcsRecd-FoundationTrust,A + E MEDICAL STAFF WH,NORTH WEST BOROUGHS HEALTHCARE NHS FOUNDATION TRUST,34569879,"83,777.00",
Department of Health,St. Helens&Knowsley Hospitals NHS Trust,30/06/2020,SrvcsRecd-FoundationTrust,COVID,WARRINGTON & HALTON HOSPITALS NHS FOUNDATION TRUST,34569880,"106,299.21",
Department of Health,St. Helens&Knowsley Hospitals NHS Trust,30/06/2020,SrvcsRecd-FoundationTrust,A + E MEDICAL STAFF WH,NORTH WEST BOROUGHS HEALTHCARE NHS FOUNDATION TRUST,34569909,"83,777.00",
Department of Health,St. Helens&Knowsley Hospitals NHS Trust,30/06/2020,SrvcsRecd-FoundationTrust,COMMUNITY SLA'S,NORTH WEST BOROUGHS HEALTHCARE NHS FOUNDATION TRUST,34655298,"25,448.10",
Department of Health,St. Helens&Knowsley Hospitals NHS Trust,30/06/2020,SrvcsRecd-FoundationTrust,CARDIOLOGY SNR MEDICAL,LIVERPOOL HEART & CHEST HOSPITAL NHS TRUST,34815247,"59,730.00",
Department of Health,St. Helens&Knowsley Hospitals NHS Trust,30/06/2020,Staff Uniforms & Clothing,COVID,TIBARD LTD,34186802,"33,746.00",
Department of Health,St. Helens&Knowsley Hospitals NHS Trust,30/06/2020,Staff Uniforms & Clothing,COVID,TIBARD LTD,34186802,"6,749.20",
Department of Health,St. Helens&Knowsley Hospitals NHS Trust,30/06/2020,Staff Uniforms & Clothing,SEWING RM/LINEN SERV WH,TIBARD LTD,34186802,"-6,749.20",
Department of Health,St. Helens&Knowsley Hospitals NHS Trust,30/06/2020,Staff Uniforms & Clothing,SEWING RM/LINEN SERV WH,TIBARD LTD,34186802,"3,240.00",
Department of Health,St. Helens&Knowsley Hospitals NHS Trust,30/06/2020,Staff Uniforms & Clothing,SEWING RM/LINEN SERV WH,TIBARD LTD,34186802,"3,240.00",
Department of Health,St. Helens&Knowsley Hospitals NHS Trust,30/06/2020,Staff Uniforms & Clothing,SEWING RM/LINEN SERV WH,TIBARD LTD,34186802,"2,371.50",
Department of Health,St. Helens&Knowsley Hospitals NHS Trust,30/06/2020,Staff Uniforms & Clothing,SEWING RM/LINEN SERV WH,TIBARD LTD,34186802,790.50,
Department of Health,St. Helens&Knowsley Hospitals NHS Trust,30/06/2020,Staff Uniforms & Clothing,SEWING RM/LINEN SERV WH,TIBARD LTD,34186802,"3,162.00",
Department of Health,St. Helens&Knowsley Hospitals NHS Trust,30/06/2020,Staff Uniforms & Clothing,SEWING RM/LINEN SERV WH,TIBARD LTD,34186802,"3,162.00",
Department of Health,St. Helens&Knowsley Hospitals NHS Trust,30/06/2020,Staff Uniforms & Clothing,SEWING RM/LINEN SERV WH,TIBARD LTD,34186802,"3,162.00",
Department of Health,St. Helens&Knowsley Hospitals NHS Trust,30/06/2020,Staff Uniforms & Clothing,SEWING RM/LINEN SERV WH,TIBARD LTD,34186802,"3,162.00",
Department of Health,St. Helens&Knowsley Hospitals NHS Trust,30/06/2020,Staff Uniforms & Clothing,SEWING RM/LINEN SERV WH,TIBARD LTD,34186802,"2,430.00",
Department of Health,St. Helens&Knowsley Hospitals NHS Trust,30/06/2020,Staff Uniforms & Clothing,SEWING RM/LINEN SERV WH,TIBARD LTD,34186802,810.00,
Department of Health,St. Helens&Knowsley Hospitals NHS Trust,30/06/2020,Staff Uniforms & Clothing,SEWING RM/LINEN SERV WH,TIBARD LTD,34186802,"3,240.00",
Department of Health,St. Helens&Knowsley Hospitals NHS Trust,30/06/2020,Staff Uniforms & Clothing,SEWING RM/LINEN SERV WH,TIBARD LTD,34186802,"3,240.00",
Department of Health,St. Helens&Knowsley Hospitals NHS Trust,30/06/2020,Stocks Raw Materials,Balance Sheet,BAYER PLC,34510135,"27,373.68",
Department of Health,St. Helens&Knowsley Hospitals NHS Trust,30/06/2020,Stocks Raw Materials,Balance Sheet,ALLIANCE HEALTHCARE DISTRIBUTION LTD,34557631,"18,159.20",
Department of Health,St. Helens&Knowsley Hospitals NHS Trust,30/06/2020,Stocks Raw Materials,Balance Sheet,ALLIANCE HEALTHCARE DISTRIBUTION LTD,34557631,"92,307.65",
Department of Health,St. Helens&Knowsley Hospitals NHS Trust,30/06/2020,Stocks Raw Materials,Balance Sheet,HEALTHCARE AT HOME LTD,34557632,"84,282.61",
Department of Health,St. Helens&Knowsley Hospitals NHS Trust,30/06/2020,Stocks Raw Materials,Balance Sheet,HEALTHCARE AT HOME LTD,34557635,"82,850.48",
Department of Health,St. Helens&Knowsley Hospitals NHS Trust,30/06/2020,Stocks Raw Materials,Balance Sheet,HEALTHCARE AT HOME LTD,34557636,"85,010.64",
Department of Health,St. Helens&Knowsley Hospitals NHS Trust,30/06/2020,Stocks Raw Materials,Balance Sheet,CELGENE LTD,34566022,"8,089.20",
Department of Health,St. Helens&Knowsley Hospitals NHS Trust,30/06/2020,Stocks Raw Materials,Balance Sheet,CELGENE LTD,34566022,"2,449.44",
Department of Health,St. Helens&Knowsley Hospitals NHS Trust,30/06/2020,Stocks Raw Materials,Balance Sheet,CELGENE LTD,34566022,"5,143.82",
Department of Health,St. Helens&Knowsley Hospitals NHS Trust,30/06/2020,Stocks Raw Materials,Balance Sheet,CELGENE LTD,34566022,"8,491.39",
Department of Health,St. Helens&Knowsley Hospitals NHS Trust,30/06/2020,Stocks Raw Materials,Balance Sheet,CELGENE LTD,34566022,"2,149.06",
Department of Health,St. Helens&Knowsley Hospitals NHS Trust,30/06/2020,Stocks Raw Materials,Balance Sheet,AAH PHARMACEUTICALS LTD,34568271,"15,314.21",
Department of Health,St. Helens&Knowsley Hospitals NHS Trust,30/06/2020,Stocks Raw Materials,Balance Sheet,AAH PHARMACEUTICALS LTD,34568271,"79,823.26",
Department of Health,St. Helens&Knowsley Hospitals NHS Trust,30/06/2020,Stocks Raw Materials,Balance Sheet,ALLOGA UK LTD,34612476,"39,618.77",
Department of Health,St. Helens&Knowsley Hospitals NHS Trust,30/06/2020,Stocks Raw Materials,Balance Sheet,CELGENE LTD,34789230,"21,609.50",
Department of Health,St. Helens&Knowsley Hospitals NHS Trust,30/06/2020,Stocks Raw Materials,Balance Sheet,CELGENE LTD,34789230,"4,158.00",
Department of Health,St. Helens&Knowsley Hospitals NHS Trust,30/06/2020,Stocks Raw Materials,Balance Sheet,HEALTHCARE AT HOME LTD,34802647,"75,400.73",
Department of Health,St. Helens&Knowsley Hospitals NHS Trust,30/06/2020,Stocks Raw Materials,Balance Sheet,HEALTHCARE AT HOME LTD,34802650,"84,189.26",
Department of Health,St. Helens&Knowsley Hospitals NHS Trust,30/06/2020,Stocks Raw Materials,Balance Sheet,ALLIANCE HEALTHCARE DISTRIBUTION LTD,34802651,"8,581.83",
Department of Health,St. Helens&Knowsley Hospitals NHS Trust,30/06/2020,Stocks Raw Materials,Balance Sheet,ALLIANCE HEALTHCARE DISTRIBUTION LTD,34802651,"43,003.19",
Department of Health,St. Helens&Knowsley Hospitals NHS Trust,30/06/2020,Water,RATES/WATER WHISTON,WATER PLUS,34655169,"28,271.78",
